[Event "Kvibergspelen 2018"]
[Site "Prioritet Serneke Arena, Krutvagen 2, Gothenburg, Sweden"]
[Date "2018.04.21"]
[Round "6.2"]
[White "Lindberg, Bengt"]
[Black "Brynell, Stellan"]
[Result "1-0"]
[TimeControl "15 minutes + 5 seconds per move from move one (Round 1 - 4) / 90 minutes + 30 seconds per move from move one (Round 5 - 8)"]
[WhiteTitle "IM"]
[BlackTitle "GM"]
[WhiteFideId "1700359"]
[BlackFideId "1700219"]
[WhiteElo "2385"]
[BlackElo "2420"]

1. e4 {[%clk 01:30:57]} {[%emt 00:00:01]} e5 {[%clk 01:29:45]} {[%emt
00:01:16]} 2. Nf3 {[%clk 01:31:04]} {[%emt 00:00:22]} Nc6 {[%clk 01:30:10]}
{[%emt 00:00:05]} 3. Bb5 {[%clk 01:30:52]} {[%emt 00:00:42]} a6 {[%clk
01:30:26]} {[%emt 00:00:15]} 4. Ba4 {[%clk 01:31:07]} {[%emt 00:00:14]} Nf6
{[%clk 01:30:49]} {[%emt 00:00:08]} 5. O-O {[%clk 01:31:21]} {[%emt 00:00:15]}
Be7 {[%clk 01:31:11]} {[%emt 00:00:08]} 6. Re1 {[%clk 01:31:36]} {[%emt
00:00:14]} d6 {[%clk 01:31:34]} {[%emt 00:00:08]} 7. c3 {[%clk 01:30:47]}
{[%emt 00:01:18]} Bg4 {[%clk 01:31:57]} {[%emt 00:00:08]} 8. d3 {[%clk
01:29:44]} {[%emt 00:01:32]} O-O {[%clk 01:31:44]} {[%emt 00:00:44]} 9. Nbd2
{[%clk 01:28:39]} {[%emt 00:01:35]} Nd7 {[%clk 01:31:59]} {[%emt 00:00:15]} 10.
Nf1 {[%clk 01:26:00]} {[%emt 00:03:09]} Nc5 {[%clk 01:28:26]} {[%emt 00:04:04]}
11. Bc2 {[%clk 01:26:20]} {[%emt 00:00:09]} Ne6 {[%clk 01:25:51]} {[%emt
00:10:26]} 12. h3 {[%clk 01:15:07]} {[%emt 00:04:21]} Bh5 {[%clk 01:25:43]}
{[%emt 00:00:39]} 13. Ng3 {[%clk 01:01:09]} {[%emt 00:14:27]} Bxf3 {[%clk
01:25:23]} {[%emt 00:00:50]} 14. Qxf3 {[%clk 01:00:13]} {[%emt 00:01:26]} Bg5
{[%clk 01:25:48]} {[%emt 00:00:05]} 15. Nf5 {[%clk 01:00:21]} {[%emt 00:00:22]}
Bxc1 {[%clk 01:01:12]} {[%emt 00:25:07]} 16. Raxc1 {[%clk 01:00:44]} {[%emt
00:00:06]} g6 {[%clk 01:00:49]} {[%emt 00:00:54]} 17. Ne3 {[%clk 01:00:37]}
{[%emt 00:00:36]} Kg7 {[%clk 01:01:09]} {[%emt 00:00:11]} 18. g3 {[%clk
01:00:06]} {[%emt 00:01:01]} Qd7 {[%clk 00:53:53]} {[%emt 00:07:47]} 19. Qg2
{[%clk 00:58:24]} {[%emt 00:02:10]} Ne7 {[%clk 00:49:16]} {[%emt 00:05:08]} 20.
Kh2 {[%clk 00:47:36]} {[%emt 00:11:18]} c6 {[%clk 00:45:15]} {[%emt 00:04:32]}
21. Rcd1 {[%clk 00:47:35]} {[%emt 00:00:30]} f5 {[%clk 00:36:03]} {[%emt
00:09:43]} 22. exf5 {[%clk 00:47:57]} {[%emt 00:00:08]} gxf5 {[%clk 00:36:13]}
{[%emt 00:00:19]} 23. d4 {[%clk 00:47:00]} {[%emt 00:01:27]} exd4 {[%clk
00:27:56]} {[%emt 00:08:48]} 24. cxd4 {[%clk 00:44:43]} {[%emt 00:02:47]} d5
{[%clk 00:20:28]} {[%emt 00:07:58]} 25. f4 {[%clk 00:44:48]} {[%emt 00:00:24]}
Kh8 {[%clk 00:18:32]} {[%emt 00:02:26]} 26. Qe2 {[%clk 00:43:21]} {[%emt
00:01:56]} Ng7 {[%clk 00:18:43]} {[%emt 00:00:20]} 27. Nc4 {[%clk 00:38:00]}
{[%emt 00:05:50]} dxc4 {[%clk 00:15:01]} {[%emt 00:04:13]} 28. Qxe7 {[%clk
00:38:24]} {[%emt 00:00:06]} Qxe7 {[%clk 00:11:45]} {[%emt 00:03:47]} 29. Rxe7
{[%clk 00:38:51]} {[%emt 00:00:02]} Rae8 {[%clk 00:11:34]} {[%emt 00:00:41]} 30.
Rde1 {[%clk 00:39:04]} {[%emt 00:00:17]} Rxe7 {[%clk 00:11:56]} {[%emt
00:00:10]} 31. Rxe7 {[%clk 00:39:32]} {[%emt 00:00:01]} b5 {[%clk 00:12:15]}
{[%emt 00:00:11]} 32. Kg2 {[%clk 00:27:59]} {[%emt 00:12:02]} Rd8 {[%clk
00:12:39]} {[%emt 00:00:06]} 33. Kf3 {[%clk 00:28:19]} {[%emt 00:00:10]} Rxd4
{[%clk 00:12:56]} {[%emt 00:00:14]} 34. Ke3 {[%clk 00:28:47]} {[%emt 00:00:01]}
Rd6 {[%clk 00:12:13]} {[%emt 00:01:13]} 35. Ra7 {[%clk 00:29:08]} {[%emt
00:00:09]} Kg8 {[%clk 00:11:03]} {[%emt 00:01:40]} 36. g4 {[%clk 00:29:03]}
{[%emt 00:00:35]} Rh6 {[%clk 00:09:33]} {[%emt 00:02:00]} 37. gxf5 {[%clk
00:29:26]} {[%emt 00:00:07]} Rxh3+ {[%clk 00:09:21]} {[%emt 00:00:43]} 38. Kd4
{[%clk 00:29:44]} {[%emt 00:00:10]} Nh5 {[%clk 00:07:05]} {[%emt 00:02:47]} 39.
Be4 {[%clk 00:26:30]} {[%emt 00:03:43]} Nxf4 {[%clk 00:05:55]} {[%emt
00:01:41]} 40. Bxc6 {[%clk 00:24:53]} {[%emt 00:02:08]} Rh6 {[%clk 00:02:49]}
{[%emt 00:03:36]} 41. Bf3 {[%clk 00:23:02]} {[%emt 00:02:20]} Kf8 {[%clk
00:00:37]} {[%emt 00:02:43]} 42. b3 {[%clk 00:19:50]} {[%emt 00:03:41]} cxb3
{[%clk 00:00:40]} {[%emt 00:00:28]} 43. axb3 {[%clk 00:20:18]} {[%emt
00:00:01]} Rh3 {[%clk 00:00:36]} {[%emt 00:00:34]} 44. Be4 {[%clk 00:16:30]}
{[%emt 00:04:18]} Rxb3 {[%clk 00:00:33]} {[%emt 00:00:34]} 45. Ke5 {[%clk
00:16:11]} {[%emt 00:00:49]} Nd3+ {[%clk 00:00:35]} {[%emt 00:00:29]} 46. Kf6
{[%clk 00:13:58]} {[%emt 00:02:42]} Ke8 {[%clk 00:00:57]} {[%emt 00:00:09]} 47.
Bd5 {[%clk 00:14:13]} {[%emt 00:00:15]} Ra3 {[%clk 00:00:53]} {[%emt 00:00:35]}
48. Be6 {[%clk 00:13:52]} {[%emt 00:00:50]} 1-0

[Event "Kvibergspelen 2018"]
[Site "Prioritet Serneke Arena, Krutvagen 2, Gothenburg, Sweden"]
[Date "2018.04.21"]
[Round "6.3"]
[White "Ernst, Thomas"]
[Black "Tikkanen, Hans"]
[Result "1/2-1/2"]
[TimeControl "15 minutes + 5 seconds per move from move one (Round 1 - 4) / 90 minutes + 30 seconds per move from move one (Round 5 - 8)"]
[WhiteTitle "GM"]
[BlackTitle "GM"]
[WhiteFideId "1700065"]
[BlackFideId "1706446"]
[WhiteElo "2366"]
[BlackElo "2486"]

1. e4 {[%clk 01:30:55]} {[%emt 00:00:04]} c6 {[%clk 01:30:58]} {[%emt
00:00:02]} 2. d4 {[%clk 01:31:16]} {[%emt 00:00:10]} d5 {[%clk 01:31:27]}
{[%emt 00:00:01]} 3. Nd2 {[%clk 01:31:35]} {[%emt 00:00:11]} dxe4 {[%clk
01:31:53]} {[%emt 00:00:04]} 4. Nxe4 {[%clk 01:31:59]} {[%emt 00:00:06]} Bf5
{[%clk 01:32:20]} {[%emt 00:00:02]} 5. Nc5 {[%clk 01:32:12]} {[%emt 00:00:18]}
Qd6 {[%clk 01:08:16]} {[%emt 00:26:09]} 6. Nf3 {[%clk 01:24:53]} {[%emt
00:06:14]} Nd7 {[%clk 01:05:09]} {[%emt 00:03:37]} 7. Bd3 {[%clk 01:24:47]}
{[%emt 00:00:35]} Bxd3 {[%clk 00:31:44]} {[%emt 00:33:56]} 8. Nxd3 {[%clk
01:25:10]} {[%emt 00:00:06]} g6 {[%clk 00:32:12]} {[%emt 00:00:02]} 9. O-O
{[%clk 01:22:54]} {[%emt 00:02:45]} Bh6 {[%clk 00:32:38]} {[%emt 00:00:05]} 10.
c3 {[%clk 01:15:06]} {[%emt 00:08:18]} Bxc1 {[%clk 00:32:47]} {[%emt 00:00:21]}
11. Rxc1 {[%clk 01:15:31]} {[%emt 00:00:05]} e6 {[%clk 00:29:29]} {[%emt
00:03:48]} 12. Qb3 {[%clk 01:00:57]} {[%emt 00:15:04]} Rb8 {[%clk 00:26:29]}
{[%emt 00:03:30]} 13. Rfe1 {[%clk 01:00:00]} {[%emt 00:01:26]} Ngf6 {[%clk
00:26:06]} {[%emt 00:00:53]} 14. Nde5 {[%clk 00:56:25]} {[%emt 00:04:04]} O-O
{[%clk 00:23:08]} {[%emt 00:03:29]} 15. c4 {[%clk 00:56:31]} {[%emt 00:00:24]}
c5 {[%clk 00:13:40]} {[%emt 00:09:58]} 16. Qa3 {[%clk 00:56:25]} {[%emt
00:00:35]} Qc7 {[%clk 00:08:19]} {[%emt 00:05:52]} 17. dxc5 {[%clk 00:54:38]}
{[%emt 00:02:17]} Qxc5 {[%clk 00:08:10]} {[%emt 00:00:40]} 18. b4 {[%clk
00:54:41]} {[%emt 00:00:27]} Qe7 {[%clk 00:08:34]} {[%emt 00:00:05]} 19. c5
{[%clk 00:51:41]} {[%emt 00:03:29]} Nxe5 {[%clk 00:08:49]} {[%emt 00:00:16]} 20.
Nxe5 {[%clk 00:52:04]} {[%emt 00:00:07]} a6 {[%clk 00:06:37]} {[%emt 00:02:43]}
21. Qf3 {[%clk 00:47:13]} {[%emt 00:05:20]} Rbd8 {[%clk 00:06:31]} {[%emt
00:00:36]} 22. c6 {[%clk 00:39:10]} {[%emt 00:08:32]} Nd5 {[%clk 00:06:38]}
{[%emt 00:00:23]} 23. a3 {[%clk 00:39:13]} {[%emt 00:00:28]} Rfe8 {[%clk
00:03:23]} {[%emt 00:03:44]} 24. h3 {[%clk 00:36:58]} {[%emt 00:02:45]} Rc8
{[%clk 00:03:03]} {[%emt 00:00:50]} 25. Rc5 {[%clk 00:34:07]} {[%emt 00:03:20]}
f6 {[%clk 00:00:36]} {[%emt 00:02:58]} 26. Nxg6 {[%clk 00:29:48]} {[%emt
00:04:49]} hxg6 {[%clk 00:01:02]} {[%emt 00:00:04]} 27. Rxd5 {[%clk 00:30:10]}
{[%emt 00:00:07]} Rxc6 {[%clk 00:01:25]} {[%emt 00:00:08]} 28. Rd4 {[%clk
00:30:22]} {[%emt 00:00:18]} Kg7 {[%clk 00:00:46]} {[%emt 00:01:10]} 29. Red1
{[%clk 00:30:16]} {[%emt 00:00:36]} Rc7 {[%clk 00:01:06]} {[%emt 00:00:11]} 30.
Rd6 {[%clk 00:29:44]} {[%emt 00:01:00]} e5 {[%clk 00:00:36]} {[%emt 00:01:01]}
31. Qe4 {[%clk 00:28:13]} {[%emt 00:02:00]} Qf7 {[%clk 00:00:33]} {[%emt
00:00:35]} 32. Kh2 {[%clk 00:23:31]} {[%emt 00:05:12]} Rc4 {[%clk 00:00:50]}
{[%emt 00:00:13]} 33. Qf3 {[%clk 00:23:46]} {[%emt 00:00:14]} e4 {[%clk
00:01:04]} {[%emt 00:00:17]} 34. Qe3 {[%clk 00:23:36]} {[%emt 00:00:39]} Rc7
{[%clk 00:00:37]} {[%emt 00:00:58]} 35. R1d4 {[%clk 00:20:25]} {[%emt
00:03:40]} Rce7 {[%clk 00:00:46]} {[%emt 00:00:22]} 36. Qf4 {[%clk 00:19:48]}
{[%emt 00:01:06]} e3 {[%clk 00:00:44]} {[%emt 00:00:34]} 37. fxe3 {[%clk
00:19:57]} {[%emt 00:00:21]} Rxe3 {[%clk 00:01:08]} {[%emt 00:00:06]} 38. Rd7
{[%clk 00:20:04]} {[%emt 00:00:23]} R3e7 {[%clk 00:01:24]} {[%emt 00:00:14]} 39.
Qc7 {[%clk 00:20:19]} {[%emt 00:00:15]} Qe6 {[%clk 00:00:32]} {[%emt 00:01:24]}
40. h4 {[%clk 00:19:03]} {[%emt 00:01:45]} Qe5 {[%clk 00:00:39]} {[%emt
00:00:24]} 41. Qxe5 {[%clk 00:18:36]} {[%emt 00:00:56]} fxe5 {[%clk 00:01:07]}
42. R4d6 {[%clk 00:18:18]} {[%emt 00:00:48]} e4 {[%clk 00:01:20]} {[%emt
00:00:18]} 43. Kg1 {[%clk 00:18:04]} {[%emt 00:00:43]} e3 {[%clk 00:00:53]}
{[%emt 00:00:58]} 44. Kf1 {[%clk 00:18:08]} {[%emt 00:00:26]} e2+ {[%clk
00:00:50]} {[%emt 00:00:34]} 45. Ke1 {[%clk 00:18:30]} {[%emt 00:00:07]} Kh6
{[%clk 00:00:48]} {[%emt 00:00:33]} 46. Rxe7 {[%clk 00:15:55]} {[%emt
00:03:06]} Rxe7 {[%clk 00:01:16]} {[%emt 00:00:02]} 47. g4 {[%clk 00:15:56]}
{[%emt 00:00:28]} Re4 {[%clk 00:01:16]} {[%emt 00:00:31]} 48. h5 {[%clk
00:13:25]} {[%emt 00:03:00]} Rxg4 {[%clk 00:01:39]} {[%emt 00:00:07]} 49. hxg6
{[%clk 00:13:41]} {[%emt 00:00:14]} Rxg6 {[%clk 00:02:05]} {[%emt 00:00:04]} 50.
Rd7 {[%clk 00:13:00]} {[%emt 00:01:11]} Rg7 {[%clk 00:01:46]} {[%emt 00:00:49]}
51. Rd6 {[%clk 00:13:16]} {[%emt 00:00:12]} Rg6 {[%clk 00:02:14]} {[%emt
00:00:03]} 52. Rd7 {[%clk 00:13:35]} {[%emt 00:00:10]} Rg7 {[%clk 00:02:42]}
{[%emt 00:00:03]} 53. Rd6 {[%clk 00:13:48]} {[%emt 00:00:17]} 1/2-1/2

[Event "Kvibergspelen 2018"]
[Site "Prioritet Serneke Arena, Krutvagen 2, Gothenburg, Sweden"]
[Date "2018.04.21"]
[Round "6.4"]
[White "Hillarp Persson, Tiger"]
[Black "Storme, Isak"]
[Result "1/2-1/2"]
[TimeControl "15 minutes + 5 seconds per move from move one (Round 1 - 4) / 90 minutes + 30 seconds per move from move one (Round 5 - 8)"]
[WhiteTitle "GM"]
[BlackTitle "CM"]
[WhiteFideId "1700812"]
[BlackFideId "1728113"]
[WhiteElo "2540"]
[BlackElo "2323"]

1. Nf3 {[%clk 01:30:51]} {[%emt 00:00:08]} d5 {[%clk 01:30:28]} {[%emt
00:00:31]} 2. c4 {[%clk 01:30:58]} {[%emt 00:00:23]} dxc4 {[%clk 01:30:35]}
{[%emt 00:00:24]} 3. e3 {[%clk 01:31:21]} {[%emt 00:00:08]} c5 {[%clk
01:30:09]} {[%emt 00:00:56]} 4. Bxc4 {[%clk 01:31:25]} {[%emt 00:00:26]} Nf6
{[%clk 01:28:53]} {[%emt 00:01:44]} 5. O-O {[%clk 01:30:25]} {[%emt 00:01:30]}
Nc6 {[%clk 01:27:53]} {[%emt 00:01:31]} 6. d4 {[%clk 01:23:35]} {[%emt
00:07:20]} e6 {[%clk 01:27:21]} {[%emt 00:01:02]} 7. Qe2 {[%clk 01:18:54]}
{[%emt 00:11:03]} cxd4 {[%clk 01:24:36]} 8. Rd1 {[%clk 01:18:28]} Be7 {[%clk
01:23:24]} {[%emt 00:00:02]} 9. exd4 {[%clk 01:17:08]} {[%emt 00:01:49]} O-O
{[%clk 01:23:10]} {[%emt 00:00:44]} 10. Nc3 {[%clk 01:17:07]} {[%emt 00:00:31]}
Nd5 {[%clk 01:14:53]} {[%emt 00:08:47]} 11. a3 {[%clk 01:03:14]} {[%emt
00:14:23]} b6 {[%clk 01:05:41]} {[%emt 00:09:42]} 12. Qe4 {[%clk 00:50:23]}
{[%emt 00:13:21]} Nxc3 {[%clk 00:59:11]} {[%emt 00:07:00]} 13. bxc3 {[%clk
00:50:15]} {[%emt 00:00:38]} Bb7 {[%clk 00:59:22]} {[%emt 00:00:20]} 14. Bd3
{[%clk 00:50:10]} {[%emt 00:00:34]} g6 {[%clk 00:59:23]} {[%emt 00:00:28]} 15.
Bh6 {[%clk 00:50:20]} {[%emt 00:00:21]} Re8 {[%clk 00:58:58]} {[%emt 00:00:56]}
16. Qg4 {[%clk 00:48:50]} {[%emt 00:01:59]} Bf6 {[%clk 00:45:41]} {[%emt
00:13:46]} 17. h4 {[%clk 00:47:37]} {[%emt 00:01:44]} Ne7 {[%clk 00:43:19]}
{[%emt 00:02:52]} 18. Bb5 {[%clk 00:42:10]} {[%emt 00:05:58]} Bc6 {[%clk
00:42:47]} {[%emt 00:01:01]} 19. Bxc6 {[%clk 00:42:27]} {[%emt 00:00:13]} Nxc6
{[%clk 00:43:09]} {[%emt 00:00:08]} 20. c4 {[%clk 00:41:44]} {[%emt 00:01:13]}
Ne7 {[%clk 00:41:52]} {[%emt 00:01:45]} 21. Bg5 {[%clk 00:37:13]} {[%emt
00:05:02]} Bxg5 {[%clk 00:34:54]} {[%emt 00:07:29]} 22. hxg5 {[%clk 00:37:31]}
{[%emt 00:00:11]} Rc8 {[%clk 00:34:03]} {[%emt 00:01:20]} 23. Rac1 {[%clk
00:35:43]} {[%emt 00:02:18]} Qd6 {[%clk 00:32:50]} {[%emt 00:01:43]} 24. Qe4
{[%clk 00:32:45]} {[%emt 00:03:30]} b5 {[%clk 00:29:26]} {[%emt 00:03:54]} 25.
c5 {[%clk 00:28:00]} {[%emt 00:05:15]} Qd5 {[%clk 00:28:45]} {[%emt 00:01:09]}
26. Qxd5 {[%clk 00:28:18]} {[%emt 00:00:13]} Nxd5 {[%clk 00:25:16]} {[%emt
00:04:00]} 27. Ne5 {[%clk 00:28:42]} {[%emt 00:00:05]} Re7 {[%clk 00:22:05]}
{[%emt 00:03:40]} 28. g3 {[%clk 00:28:52]} {[%emt 00:00:21]} h6 {[%clk
00:20:07]} {[%emt 00:02:28]} 29. gxh6 {[%clk 00:29:06]} {[%emt 00:00:16]} Kh7
{[%clk 00:20:08]} {[%emt 00:00:29]} 30. Ng4 {[%clk 00:29:14]} {[%emt 00:00:23]}
a5 {[%clk 00:19:19]} {[%emt 00:01:19]} 31. Kg2 {[%clk 00:28:16]} {[%emt
00:01:27]} b4 {[%clk 00:17:29]} {[%emt 00:02:19]} 32. Rd3 {[%clk 00:28:22]}
{[%emt 00:00:24]} Rb7 {[%clk 00:16:23]} {[%emt 00:01:36]} 33. axb4 {[%clk
00:28:33]} {[%emt 00:00:21]} axb4 {[%clk 00:16:47]} {[%emt 00:00:05]} 34. Rb3
{[%clk 00:23:10]} {[%emt 00:05:53]} Ra8 {[%clk 00:14:32]} {[%emt 00:02:45]} 35.
Ne3 {[%clk 00:23:10]} {[%emt 00:00:29]} Kxh6 {[%clk 00:13:05]} {[%emt
00:01:58]} 36. Nxd5 {[%clk 00:19:58]} {[%emt 00:03:42]} exd5 {[%clk 00:13:29]}
{[%emt 00:00:06]} 37. Kf3 {[%clk 00:20:23]} {[%emt 00:00:05]} Kg5 {[%clk
00:12:58]} {[%emt 00:01:01]} 38. Rcb1 {[%clk 00:17:17]} {[%emt 00:03:36]} Ra4
{[%clk 00:12:27]} {[%emt 00:01:01]} 39. Re3 {[%clk 00:16:30]} {[%emt 00:01:16]}
f6 {[%clk 00:10:43]} {[%emt 00:02:13]} 40. g4 {[%clk 00:09:40]} {[%emt
00:07:21]} f5 {[%clk 00:06:54]} {[%emt 00:04:19]} 41. gxf5 {[%clk 00:09:56]}
{[%emt 00:00:13]} gxf5 {[%clk 00:07:15]} {[%emt 00:00:09]} 42. Rg1+ {[%clk
00:03:40]} {[%emt 00:06:46]} Kf6 {[%clk 00:07:34]} {[%emt 00:00:11]} 43. Rh1
{[%clk 00:04:02]} {[%emt 00:00:08]} b3 {[%clk 00:07:02]} {[%emt 00:01:02]} 44.
c6 {[%clk 00:03:56]} {[%emt 00:00:36]} Rc7 {[%clk 00:05:51]} {[%emt 00:01:42]}
45. Rxb3 {[%clk 00:04:17]} {[%emt 00:00:10]} Rc4 {[%clk 00:05:40]} {[%emt
00:00:40]} 46. Rh6+ {[%clk 00:04:17]} {[%emt 00:00:30]} Kg5 {[%clk 00:05:26]}
{[%emt 00:00:43]} 47. Rd6 {[%clk 00:04:23]} {[%emt 00:00:25]} R7xc6 {[%clk
00:05:22]} {[%emt 00:00:34]} 48. Rxd5 {[%clk 00:04:39]} {[%emt 00:00:14]} Rc3+
{[%clk 00:05:32]} {[%emt 00:00:20]} 49. Rxc3 {[%clk 00:05:01]} {[%emt
00:00:08]} Rxc3+ {[%clk 00:05:58]} {[%emt 00:00:05]} 50. Kg2 {[%clk 00:05:25]}
{[%emt 00:00:06]} Kf4 {[%clk 00:05:36]} {[%emt 00:00:52]} 51. Rd8 {[%clk
00:05:47]} {[%emt 00:00:09]} Rd3 {[%clk 00:05:01]} {[%emt 00:01:03]} 52. Rh8
{[%clk 00:01:55]} {[%emt 00:04:22]} Rxd4 {[%clk 00:05:09]} {[%emt 00:00:23]} 53.
Rh4+ {[%clk 00:02:18]} {[%emt 00:00:07]} 1/2-1/2

[Event "Kvibergspelen 2018"]
[Site "Prioritet Serneke Arena, Krutvagen 2, Gothenburg, Sweden"]
[Date "2018.04.21"]
[Round "6.5"]
[White "Pantzar, Milton"]
[Black "Rydstrom, Tom"]
[Result "1-0"]
[TimeControl "15 minutes + 5 seconds per move from move one (Round 1 - 4) / 90 minutes + 30 seconds per move from move one (Round 5 - 8)"]
[WhiteTitle "FM"]
[BlackTitle "FM"]
[WhiteFideId "1721003"]
[BlackFideId "1714830"]
[WhiteElo "2295"]
[BlackElo "2357"]

1. Nf3 {[%clk 01:30:54]} {[%emt 00:00:05]} d5 {[%clk 01:30:57]} {[%emt
00:00:04]} 2. g3 {[%clk 01:30:47]} {[%emt 00:00:37]} Nc6 {[%clk 01:31:24]}
{[%emt 00:00:03]} 3. d4 {[%clk 01:29:51]} {[%emt 00:01:25]} Bg4 {[%clk
01:31:49]} {[%emt 00:00:05]} 4. Bg2 {[%clk 01:13:29]} {[%emt 00:24:48]} Qd7
{[%clk 01:32:12]} 5. O-O {[%clk 01:13:34]} O-O-O {[%clk 01:08:46]} {[%emt
00:16:32]} 6. Nbd2 {[%clk 01:08:05]} {[%emt 00:05:59]} Kb8 {[%clk 01:06:40]}
{[%emt 00:02:36]} 7. c4 {[%clk 00:57:20]} {[%emt 00:11:15]} e6 {[%clk
00:58:29]} {[%emt 00:08:41]} 8. c5 {[%clk 00:46:06]} {[%emt 00:11:44]} e5
{[%clk 00:53:09]} {[%emt 00:05:50]} 9. b4 {[%clk 00:41:09]} {[%emt 00:05:27]}
e4 {[%clk 00:45:12]} {[%emt 00:08:28]} 10. b5 {[%clk 00:37:20]} {[%emt
00:04:19]} exf3 {[%clk 00:45:02]} {[%emt 00:00:40]} 11. exf3 {[%clk 00:37:33]}
{[%emt 00:00:17]} Nxd4 {[%clk 00:27:45]} {[%emt 00:17:48]} 12. c6 {[%clk
00:37:33]} {[%emt 00:00:30]} bxc6 {[%clk 00:25:30]} {[%emt 00:02:45]} 13. bxc6
{[%clk 00:34:36]} {[%emt 00:03:27]} Qxc6 {[%clk 00:25:48]} {[%emt 00:00:12]} 14.
fxg4 {[%clk 00:32:35]} {[%emt 00:02:30]} Bc5 {[%clk 00:16:43]} {[%emt
00:09:35]} 15. Nc4 {[%clk 00:23:31]} {[%emt 00:09:34]} Ne7 {[%clk 00:12:58]}
{[%emt 00:04:15]} 16. Rb1+ {[%clk 00:20:24]} {[%emt 00:03:37]} Ka8 {[%clk
00:11:54]} {[%emt 00:01:34]} 17. Be3 {[%clk 00:14:37]} {[%emt 00:06:16]} Ne6
{[%clk 00:04:22]} {[%emt 00:08:02]} 18. Ne5 {[%clk 00:07:31]} {[%emt 00:07:36]}
Qe8 {[%clk 00:04:45]} {[%emt 00:00:07]} 19. Qb3 {[%clk 00:07:20]} {[%emt
00:00:42]} Rb8 {[%clk 00:02:23]} {[%emt 00:02:52]} 20. Bxd5+ {[%clk 00:04:31]}
{[%emt 00:03:18]} c6 {[%clk 00:02:23]} {[%emt 00:00:31]} 21. Nxc6 {[%clk
00:02:39]} {[%emt 00:02:22]} Rxb3 {[%clk 00:01:48]} {[%emt 00:01:05]} 22. Nxe7+
{[%clk 00:03:00]} {[%emt 00:00:08]} Kb8 {[%clk 00:01:57]} {[%emt 00:00:21]} 23.
Rxb3+ {[%clk 00:03:23]} {[%emt 00:00:07]} Kc7 {[%clk 00:01:21]} {[%emt
00:01:05]} 24. Rb7+ {[%clk 00:03:42]} {[%emt 00:00:12]} Kd6 {[%clk 00:00:59]}
{[%emt 00:00:52]} 25. Rd1 {[%clk 00:03:07]} {[%emt 00:01:04]} Bd4 {[%clk
00:00:38]} {[%emt 00:00:51]} 26. Bxd4 {[%clk 00:02:33]} {[%emt 00:01:04]} Nxd4
{[%clk 00:00:37]} {[%emt 00:00:31]} 27. Rxd4 {[%clk 00:02:57]} {[%emt
00:00:06]} Kc5 {[%clk 00:00:37]} {[%emt 00:00:30]} 28. Rc4+ {[%clk 00:02:37]}
{[%emt 00:00:50]} Kd6 {[%clk 00:01:06]} {[%emt 00:00:01]} 29. f4 {[%clk
00:02:40]} {[%emt 00:00:27]} 1-0